fUSD/lending_fUSD_20240528
["ID","MTS","AMOUNT","RATE_DAILY","PERIOD"]
[328126622,1716910240822,-500.0,0.00027397,2]
[328126623,1716910240832,-500.0,0.00027397,2]
[328126624,1716910240841,-500.0,0.00027397,2]
[328126625,1716910240851,-529.44989123,0.00027397,2]
[328126626,1716910240861,-500.0,0.00027397,2]
[328126627,1716910240871,-500.94328476,0.00027397,2]
[328126628,1716910240881,-500.0,0.00027397,2]
[328126629,1716910240891,-514.3115174,0.00027397,2]
[328126630,1716910240901,-560.14,0.00027397,2]
[328126631,1716910240911,-509.61409094,0.00027397,2]
[328126632,1716910240920,-500.0,0.00027397,2]
[328126633,1716910240934,-500.0,0.00027397,2]
[328126634,1716910240945,-500.0,0.00027397,2]
[328126635,1716910240955,-500.0,0.00027397,2]
[328126636,1716910240965,-317.80727709,0.00027397,2]
[328126637,1716910240975,-500.0,0.00027397,2]
[328126638,1716910240985,-546.51673686,0.00027397,2]
[328126639,1716910240995,-500.0,0.00027397,2]
[328126640,1716910241005,-534.16400192,0.00027397,2]
[328126641,1716910241016,-500.0,0.00027397,2]
[328126642,1716910241026,-500.0,0.00027397,2]
[328126643,1716910241035,-500.0,0.00027397,2]
[328126644,1716910241045,-500.0,0.00027397,2]
[328126645,1716910241055,-507.85509951,0.00027397,2]
[328126646,1716910241065,-500.0,0.00027397,2]
[328126647,1716910241074,-500.0,0.00027397,2]
[328126648,1716910241084,-500.0,0.00027397,2]
[328126649,1716910241094,-500.0,0.00027397,2]
[328126650,1716910241104,-500.0,0.00027397,2]
[328126651,1716910241113,-500.0,0.00027397,2]
[328126652,1716910241123,-500.0,0.00027397,2]
[328126653,1716910241133,-500.0,0.00027397,2]
[328126654,1716910241143,-500.0,0.00027397,2]
[328126655,1716910241153,-374.62781966,0.00027397,2]
[328126656,1716910241482,-139.33438382,0.00027397,2]
[328126657,1716910241491,-500.0,0.00027397,2]
[328126658,1716910241501,-500.0,0.00027397,2]
[328126659,1716910241510,-118.38497044,0.00027397,2]
[328126660,1716910241522,-381.61502956,0.00027397,2]
[328126661,1716910241532,-500.0,0.00027397,2]
[328126662,1716910241541,-500.0,0.00027397,2]
[328126663,1716910241550,-63.61195669,0.00027397,2]
[328126664,1716910241561,-436.38804331,0.00027397,2]
[328126665,1716910241571,-500.0,0.00027397,2]
[328126666,1716910241581,-500.0,0.00027397,2]
[328126667,1716910241590,-239.96781069,0.00027397,2]
[328126668,1716910241603,-259.94301548,0.00027397,2]
[328126669,1716910241614,-0.08917383,0.00027397,2]
[328126670,1716910241623,-500.0,0.00027397,2]
[328126671,1716910241633,-500.0,0.00027397,2]
[328126672,1716910241642,-500.0,0.00027397,2]
[328126673,1716910241651,-507.17004266,0.00027397,2]
[328126674,1716910241660,-500.0,0.00027397,2]
[328126675,1716910241670,-500.0,0.00027397,2]
[328126676,1716910241679,-500.0,0.00027397,2]
[328126677,1716910241688,-500.0,0.00027397,2]
[328126678,1716910241701,-500.0,0.00027397,2]
[328126679,1716910241711,-500.0,0.00027397,2]
[328126680,1716910241720,-500.0,0.00027397,2]
[328126681,1716910241730,-500.0,0.00027397,2]
[328126682,1716910241739,-500.0,0.00027397,2]
[328126683,1716910241749,-500.0,0.00027397,2]
[328126684,1716910241758,-500.0,0.00027397,2]
[328126685,1716910241767,-369.17605549,0.00027397,2]
[328126686,1716910241779,-130.82394451,0.00027397,2]
[328126687,1716910241788,-500.0,0.00027397,2]
[328126688,1716910241798,-500.0,0.00027397,2]
[328126689,1716910241807,-500.0,0.00027397,2]
[328126690,1716910241817,-500.0,0.00027397,2]
[328126691,1716910241826,-500.0,0.00027397,2]
[328126692,1716910241835,-563.11652718,0.00027397,2]
[328126693,1716910241844,-418.38838041,0.00027397,2]
[328126694,1716910241856,-81.61161959,0.00027397,2]
[328126695,1716910241865,-500.0,0.00027397,2]
[328126696,1716910241874,-500.0,0.00027397,2]
[328126697,1716910241883,-500.0,0.00027397,2]
[328126698,1716910241892,-500.0,0.00027397,2]
[328126699,1716910241902,-500.0,0.00027397,2]
[328126700,1716910241911,-500.0,0.00027397,2]
[328126701,1716910241920,-500.0,0.00027397,2]
[328126702,1716910241934,-581.97267108,0.00027397,2]
[328126703,1716910241946,-500.0,0.00027397,2]
[328126704,1716910241956,-239.8834714,0.00027397,2]
[328126705,1716910241972,-260.1165286,0.00027397,2]
[328126706,1716910241982,-414.33243427,0.00027397,2]
[328126707,1716910242090,-500.0,0.00018396,2]
[328126708,1716910242100,-462.03546525,0.00018396,2]
[328126709,1716910242113,-37.96453475,0.00018396,2]
[328126710,1716910242124,-2092.2844857,0.00027396,5]
[328126711,1716910242134,-85.66756573,0.00027397,2]
[328126712,1716910242144,-500.0,0.00027397,2]
[328126713,1716910242153,-238.7638977,0.00027397,2]
[328126714,1716910242163,-409.17423427,0.00027397,2]
[328126715,1716910242174,-500.0,0.00027397,2]
[328126716,1716910242184,-500.0,0.00027397,2]
[328126717,1716910242198,-500.0,0.00027397,2]
[328126718,1716910242208,-500.0,0.00027397,2]
[328126719,1716910242218,-500.0,0.00027397,2]
[328126720,1716910242228,-520.42662473,0.00027397,2]
[328126721,1716910242238,-769.78,0.00027397,2]
[328126722,1716910242248,-500.0,0.00027397,2]
[328126723,1716910242258,-500.0,0.00027397,2]
[328126724,1716910242268,-500.0,0.00027397,2]
[328126725,1716910242277,-500.0,0.00027397,2]
[328126726,1716910242287,-500.0,0.00027397,2]
[328126727,1716910242296,-500.0,0.00027397,2]
[328126728,1716910242306,-500.0,0.00027397,2]
[328126729,1716910242316,-500.0,0.00027397,2]
[328126730,1716910242326,-500.0,0.00027397,2]
[328126731,1716910242336,-500.0,0.00027397,2]
[328126732,1716910242346,-500.0,0.00027397,2]
[328126733,1716910242356,-500.0,0.00027397,2]
[328126734,1716910242366,-500.0,0.00027397,2]
[328126735,1716910242376,-500.0,0.00027397,2]
[328126736,1716910242386,-500.0,0.00027397,2]
[328126737,1716910242396,-500.0,0.00027397,2]
[328126738,1716910242407,-500.0,0.00027397,2]
[328126739,1716910242417,-500.0,0.00027397,2]
[328126740,1716910242426,-500.0,0.00027397,2]
[328126741,1716910242436,-760.43,0.00027397,2]
[328126742,1716910242449,-500.0,0.00027397,2]
[328126743,1716910242459,-500.0,0.00027397,2]
[328126744,1716910242468,-500.0,0.00027397,2]
[328126745,1716910242478,-500.0,0.00027397,2]
[328126746,1716910242487,-500.0,0.00027397,2]
[328126747,1716910242496,-558.61,0.00027397,2]
[328126748,1716910242506,-500.0,0.00027397,2]
[328126749,1716910242515,-500.0,0.00027397,2]
[328126750,1716910242524,-500.0,0.00027397,2]
[328126751,1716910242533,-500.0,0.00027397,2]
[328126752,1716910242543,-500.0,0.00027397,2]
[328126753,1716910242552,-500.0,0.00027397,2]
[328126754,1716910242561,-500.0,0.00027397,2]
[328126755,1716910242570,-500.0,0.00027397,2]
[328126756,1716910242579,-500.0,0.00027397,2]
[328126757,1716910242589,-512.44927159,0.00027397,2]
[328126758,1716910242599,-500.0,0.00027397,2]
[328126759,1716910242608,-500.0,0.00027397,2]
[328126760,1716910242617,-1465.17,0.00027397,2]
[328126761,1716910242629,-500.0,0.00027397,2]
[328126762,1716910242639,-155.59502679,0.00027397,2]
[328126763,1716910242648,-95.18018384,0.00027397,2]
[328126764,1716910242665,-404.81981616,0.00027397,2]
[328126765,1716910242676,-500.0,0.00027397,2]
[328126766,1716910242686,-171.13513574,0.00027397,2]
[328126767,1716910242703,-328.86486426,0.00027397,2]
[328126768,1716910242713,-500.0,0.00027397,2]
[328126769,1716910242723,-500.0,0.00027397,2]
[328126770,1716910242733,-500.0,0.00027397,2]
[328126771,1716910242743,-198.88,0.00027397,2]
[328126772,1716910242753,-500.0,0.00027397,2]
[328126773,1716910242764,-129.52172924,0.00027397,2]
[328126774,1716910242777,-185.85827871,0.00027397,2]
[328126775,1716910242787,-500.0,0.00027397,2]
[328126776,1716910242797,-615.54592404,0.00027397,2]
[328126777,1716910242809,-1.36418648,0.00027397,2]
[328126778,1716910242821,-500.0,0.00027397,2]
[328126779,1716910242831,-500.0,0.00027397,2]
[328126780,1716910242841,-500.0,0.00027397,2]
[328126781,1716910242851,-500.0,0.00027397,2]
[328126782,1716910242861,-500.0,0.00027397,2]
[328126783,1716910242872,-507.83815981,0.00027397,2]
[328126784,1716910242883,-1820.24,0.00027397,2]
[328126785,1716910242893,-500.0,0.00027397,2]
[328126786,1716910242903,-551.77365422,0.00027397,2]
[328126787,1716910242913,-218.6101022,0.00027397,2]
[328126788,1716910242926,-281.3898978,0.00027397,2]
[328126789,1716910242939,-648.69,0.00027397,2]
[328126790,1716910242955,-500.0,0.00027397,2]
[328126791,1716910242965,-500.0,0.00027397,2]
[328126792,1716910242975,-524.81025361,0.00027397,2]
[328126793,1716910242985,-500.0,0.00027397,2]
[328126794,1716910242995,-500.0,0.00027397,2]
[328126795,1716910243005,-500.0,0.00027397,2]
[328126796,1716910243018,-500.0,0.00027397,2]
[328126797,1716910243027,-500.0,0.00027397,2]
[328126798,1716910243036,-458.83060032,0.00027397,2]
[328126799,1716910243046,-500.0,0.00027397,2]
[328126800,1716910243057,-415.83904136,0.00027397,2]
[328126801,1716910243070,-178.52529103,0.00027397,2]
[328126802,1716910243080,-500.0,0.00027397,2]
[328126803,1716910243091,-269.09369139,0.00027397,2]
[328126804,1716910243101,-519.11755904,0.00027397,2]
[328126805,1716910243111,-500.0,0.00027397,2]
[328126806,1716910243121,-500.0,0.00027397,2]
[328126807,1716910243133,-500.0,0.00027397,2]
[328126808,1716910243143,-581.66904246,0.00027397,2]
[328126809,1716910243153,-520.2612016,0.00027397,2]
[328126810,1716910243163,-500.0,0.00027397,2]
[328126811,1716910243172,-642.95971584,0.00027397,2]
[328126812,1716910243182,-696.91,0.00027397,2]
[328126813,1716910243193,-500.0,0.00027397,2]
[328126814,1716910243206,-500.0,0.00027397,2]
[328126815,1716910243216,-500.0,0.00027397,2]
[328126816,1716910243225,-500.0,0.00027397,2]
[328126817,1716910243235,-637.5,0.00027397,2]
[328126818,1716910243244,-500.0,0.00027397,2]
[328126819,1716910243254,-368.21760617,0.00027397,2]
[328126820,1716910243264,-376.98348339,0.00027397,2]
[328126821,1716910243277,-123.01651661,0.00027397,2]
[328126822,1716910243287,-500.0,0.00027397,2]
[328126823,1716910243298,-500.0,0.00027397,2]
[328126824,1716910243308,-500.0,0.00027397,2]
[328126825,1716910243318,-20306.54378881,0.00027397,2]
[328126826,1716910243328,-500.0,0.00027397,2]
[328126827,1716910243338,-500.0,0.00027397,2]
[328126828,1716910243348,-500.0,0.00027397,2]
[328126829,1716910243358,-500.0,0.00027397,2]
[328126830,1716910243368,-500.0,0.00027397,2]
[328126831,1716910243378,-500.0,0.00027397,2]
[328126832,1716910243389,-221.25600767,0.00027397,2]
[328126833,1716910243399,-500.0,0.00027397,2]
[328126834,1716910243409,-500.0,0.00027397,2]
[328126835,1716910243419,-2035.74,0.00027397,2]
[328126836,1716910243430,-633.48732513,0.00027397,2]
[328126837,1716910243439,-500.0,0.00027397,2]
[328126838,1716910243452,-500.0,0.00027397,2]
[328126839,1716910243462,-500.0,0.00027397,2]
[328126840,1716910243471,-500.0,0.00027397,2]
[328126841,1716910243480,-500.0,0.00027397,2]
[328126842,1716910243489,-500.0,0.00027397,2]
[328126843,1716910243498,-525.40741293,0.00027397,2]
[328126844,1716910243508,-500.0,0.00027397,2]
[328126845,1716910243518,-500.0,0.00027397,2]
[328126846,1716910243528,-510.12106462,0.00027397,2]
[328126847,1716910243539,-500.0,0.00027397,2]
[328126848,1716910243549,-500.0,0.00027397,2]
[328126849,1716910243559,-500.0,0.00027397,2]
[328126850,1716910243569,-500.0,0.00027397,2]
[328126851,1716910243579,-500.0,0.00027397,2]
[328126852,1716910243589,-500.0,0.00027397,2]
[328126853,1716910243598,-490.75821776,0.00027397,2]
[328126854,1716910243608,-500.0,0.00027397,2]
[328126855,1716910243618,-500.0,0.00027397,2]
[328126856,1716910243628,-517.75066891,0.00027397,2]
[328126857,1716910243638,-500.0,0.00027397,2]
[328126858,1716910243648,-500.0,0.00027397,2]
[328126859,1716910243658,-500.0,0.00027397,2]
[328126860,1716910243669,-500.0,0.00027397,2]
[328126861,1716910243679,-1173.27,0.00027397,2]
[328126862,1716910243689,-15852.08,0.00027397,2]
[328126863,1716910243702,-3753.66,0.00027397,30]
[328126864,1716910243713,-1324.09,0.00027397,10]
[328126865,1716910243723,-1103.4,0.00027397,10]
[328126866,1716910243734,-919.5,0.00027397,10]
[328126867,1716910243745,-566.53,0.000274,2]
[328126868,1716910243755,-153.30098332,0.000274,2]
[328126869,1716910243765,-1083.16,0.000274,2]
[328126870,1716910243776,-1083.16,0.000274,2]
[328126871,1716910243787,-1083.16,0.000274,2]
[328126872,1716910243796,-1083.16,0.000274,2]
[328126873,1716910243807,-344.39583779,0.0002743,2]
[328126874,1716910243816,-344.39583779,0.00027453,2]
[328126875,1716910243826,-155.51610014,0.00027489,2]
[328126876,1716910243836,-151.40096085,0.0002749,2]
[328126877,1716910243846,-150.0,0.000275,5]
[328126878,1716910243856,-164.3233478,0.00027532,2]
[328126879,1716910243866,-300.0,0.00027534,2]
[328126880,1716910243875,-161.32366635,0.00027571,2]
[328126881,1716910243885,-155.6088353,0.00027596,2]
[328126882,1716910243895,-170.5945697,0.00027601,2]
[328126883,1716910243905,-151.40096085,0.00027606,2]
[328126884,1716910243915,-344.39583779,0.00027616,2]
[328126885,1716910243926,-155.51610014,0.00027646,2]
[328126886,1716910243938,-321.18266294,0.00027652,2]
[328126887,1716910243952,-500.0,0.00027671,2]
[328126888,1716910243962,-500.0,0.00027671,2]
[328126889,1716910243974,-500.0,0.00027671,2]
[328126890,1716910243984,-534.74204727,0.00027671,2]
[328126891,1716910243993,-500.0,0.00027671,2]
[328126892,1716910244002,-500.0,0.00027671,2]
[328126893,1716910244013,-500.0,0.00027671,2]
[328126894,1716910244023,-500.0,0.00027671,2]
[328126895,1716910244033,-500.0,0.00027671,2]
[328126896,1716910244043,-500.0,0.00027671,2]
[328126897,1716910244052,-500.0,0.00027671,2]
[328126898,1716910244068,-500.0,0.00027671,2]
[328126899,1716910244081,-500.0,0.00027671,2]
[328126900,1716910244091,-500.0,0.00027671,2]
[328126901,1716910244101,-500.0,0.00027671,2]
[328126902,1716910244111,-500.0,0.00027671,2]
[328126903,1716910244122,-500.0,0.00027671,2]
[328126904,1716910244133,-500.0,0.00027671,2]
[328126905,1716910244142,-500.0,0.00027671,2]
[328126906,1716910244152,-488.31576289,0.00027671,2]
[328126907,1716910244162,-556.78333023,0.00027671,2]
[328126908,1716910244171,-548.45935373,0.00027671,2]
[328126909,1716910244181,-317.66732719,0.00027671,2]
[328126910,1716910244191,-505.30764321,0.00027671,2]
[328126911,1716910244205,-500.0,0.00027671,2]
[328126912,1716910244214,-500.0,0.00027671,2]
[328126913,1716910244224,-504.65841552,0.00027671,2]
[328126914,1716910244234,-406.76649654,0.00027671,2]
[328126915,1716910244243,-151.0,0.00027671,7]
[328126916,1716910244253,-500.0,0.00027671,2]
[328126917,1716910244263,-500.0,0.00027671,2]
[328126918,1716910244273,-632.92540093,0.00027671,2]
[328126919,1716910244283,-500.0,0.00027671,2]
[328126920,1716910244292,-500.0,0.00027671,2]
[328126921,1716910244302,-302.32799881,0.00027671,2]
[328126922,1716910244311,-3757.66,0.00027671,2]
[328126923,1716910244321,-500.0,0.00027671,2]
[328126924,1716910244330,-506.00965941,0.00027671,2]
[328126925,1716910244340,-500.0,0.00027671,2]
[328126926,1716910244350,-500.0,0.00027671,2]
[328126927,1716910244359,-500.0,0.00027671,2]
[328126928,1716910244369,-454.16554486,0.00027671,2]
[328126929,1716910244378,-500.0,0.00027671,2]
[328126930,1716910244558,-500.0,0.00027671,2]
[328126931,1716910244568,-500.0,0.00027671,2]
[328126932,1716910244578,-500.0,0.00027671,2]
[328126933,1716910244587,-550.27145752,0.00027671,2]
[328126934,1716910244596,-500.0,0.00027671,2]
[328126935,1716910244606,-500.0,0.00027671,2]
[328126936,1716910244615,-500.0,0.00027671,2]
[328126937,1716910244624,-500.0,0.00027671,2]
[328126938,1716910244633,-500.0,0.00027671,2]
[328126939,1716910244642,-500.0,0.00027671,2]
[328126940,1716910244651,-500.0,0.00027671,2]
[328126941,1716910244660,-500.0,0.00027671,2]
[328126942,1716910244670,-500.0,0.00027671,2]
[328126943,1716910244679,-500.0,0.00027671,2]
[328126944,1716910244690,-500.0,0.00027671,2]
[328126945,1716910244703,-500.0,0.00027671,2]
[328126946,1716910244713,-500.0,0.00027671,2]
[328126947,1716910244723,-500.0,0.00027671,2]
[328126948,1716910244734,-500.0,0.00027671,2]
[328126949,1716910244744,-608.4378372,0.00027671,2]
[328126950,1716910244756,-500.0,0.00027671,2]
[328126952,1716910244766,-500.0,0.00027671,2]
[328126954,1716910244776,-500.0,0.00027671,2]
[328126955,1716910244786,-500.0,0.00027671,2]
[328126956,1716910244797,-500.0,0.00027671,2]
[328126957,1716910244807,-500.0,0.00027671,2]
[328126958,1716910244817,-500.0,0.00027671,2]
[328126959,1716910244827,-500.0,0.00027671,2]
[328126960,1716910244836,-500.0,0.00027671,2]
[328126961,1716910244846,-500.0,0.00027671,2]
[328126962,1716910244856,-500.0,0.00027671,2]
[328126963,1716910244866,-500.0,0.00027671,2]
[328126964,1716910244876,-500.0,0.00027671,2]
[328126965,1716910244885,-151.0,0.00027671,7]
[328126966,1716910244896,-151.0,0.00027671,7]
[328126967,1716910244906,-500.0,0.00027671,2]
[328126968,1716910244916,-500.0,0.00027671,2]
[328126969,1716910244931,-500.0,0.00027671,2]
[328126970,1716910244950,-500.0,0.00027671,2]
[328126971,1716910244960,-500.0,0.00027671,2]
[328126972,1716910244970,-500.0,0.00027671,2]
[328126973,1716910244979,-500.0,0.00027671,2]
[328126974,1716910244991,-151.0,0.00027671,7]
[328126975,1716910245001,-500.0,0.00027671,2]
[328126976,1716910245011,-500.0,0.00027671,2]
[328126977,1716910245020,-500.0,0.00027671,2]
[328126978,1716910245031,-500.0,0.00027671,2]
[328126979,1716910245042,-151.0,0.00027671,7]
[328126980,1716910245051,-195.12,0.00027671,2]
[328126981,1716910245062,-500.0,0.00027671,2]
[328126982,1716910245072,-500.0,0.00027671,2]
[328126983,1716910245082,-500.0,0.00027671,2]
[328126984,1716910245092,-500.0,0.00027671,2]
[328126985,1716910245102,-500.0,0.00027671,2]
[328126986,1716910245112,-500.0,0.00027671,2]
[328126987,1716910245121,-500.0,0.00027671,2]
[328126988,1716910245131,-516.20166262,0.00027671,2]
[328126989,1716910245141,-500.0,0.00027671,2]
[328126990,1716910245151,-154.112419,0.00027671,7]
[328126991,1716910245160,-500.0,0.00027671,2]
[328126992,1716910245170,-500.0,0.00027671,2]
[328126993,1716910245180,-154.112419,0.00027671,7]
[328126994,1716910245189,-151.0,0.00027671,7]
[328126995,1716910245203,-500.0,0.00027671,2]
[328126996,1716910245212,-500.0,0.00027671,2]
[328126997,1716910245222,-151.0,0.00027671,7]
[328126998,1716910245232,-500.0,0.00027671,2]
[328126999,1716910245241,-151.0,0.00027671,7]
[328127000,1716910245251,-500.0,0.00027671,2]
[328127001,1716910245261,-267.55,0.00027671,2]
[328127002,1716910245271,-500.0,0.00027671,2]
[328127003,1716910245281,-500.0,0.00027671,2]
[328127004,1716910245291,-163.15121249,0.00027671,2]
[328127005,1716910245300,-500.0,0.00027671,2]
[328127006,1716910245310,-151.0,0.00027671,7]
[328127007,1716910245320,-500.0,0.00027671,2]
[328127008,1716910245330,-500.0,0.00027671,2]
[328127009,1716910245339,-500.0,0.00027671,2]
[328127010,1716910245349,-500.0,0.00027671,2]
[328127011,1716910245358,-500.0,0.00027671,2]
[328127012,1716910245368,-500.0,0.00027671,2]
[328127013,1716910245379,-500.0,0.00027671,2]
[328127014,1716910245389,-500.0,0.00027671,2]
[328127015,1716910245399,-151.0,0.00027671,7]
[328127016,1716910245409,-500.0,0.00027671,2]
[328127017,1716910245419,-500.0,0.00027671,2]
[328127018,1716910245428,-179.19,0.00027671,2]
[328127019,1716910245438,-500.0,0.00027671,2]
[328127020,1716910245450,-509.43436,0.00027671,7]
[328127021,1716910245462,-500.0,0.00027671,2]
[328127022,1716910245471,-616.71,0.00027671,2]
[328127023,1716910245481,-509.43436,0.00027671,7]
[328127024,1716910245490,-6398.3,0.00027671,2]
[328127025,1716910245500,-201.94525,0.00027671,7]
[328127026,1716910245509,-500.0,0.00027671,2]
[328127027,1716910245518,-500.0,0.00027671,2]
[328127028,1716910245527,-500.0,0.00027671,2]
[328127029,1716910245536,-151.0,0.00027671,7]
[328127030,1716910245546,-520.36900286,0.00027671,2]
[328127031,1716910245555,-151.0,0.00027671,7]
[328127032,1716910245565,-151.0,0.00027671,7]
[328127033,1716910245575,-500.0,0.00027671,2]
[328127034,1716910245584,-390.03148026,0.00027671,2]
[328127035,1716910245594,-469.47,0.00027671,2]
[328127036,1716910245604,-500.0,0.00027671,2]
[328127037,1716910245614,-526.80513626,0.00027671,2]
[328127038,1716910245624,-500.0,0.00027671,2]
[328127039,1716910245634,-500.0,0.00027671,2]
[328127040,1716910245643,-500.0,0.00027671,2]
[328127041,1716910245653,-500.0,0.00027671,2]
[328127042,1716910245664,-510.4699967,0.00027671,2]
[328127043,1716910245673,-151.0,0.00027671,7]
[328127044,1716910245683,-151.0,0.00027671,7]
[328127045,1716910245692,-500.0,0.00027671,2]
[328127046,1716910245706,-286.847631,0.00027671,7]
[328127047,1716910245715,-286.847631,0.00027671,7]
[328127048,1716910245724,-154.127639,0.00027671,7]
[328127049,1716910245734,-151.0,0.00027671,7]
[328127050,1716910245744,-156.022602,0.00027671,7]
[328127051,1716910245753,-500.0,0.00027671,2]
[328127052,1716910245763,-178.2092212,0.00027671,2]
[328127053,1716910245773,-500.0,0.00027671,2]
[328127054,1716910245782,-560.14,0.00027671,2]
[328127055,1716910245791,-151.0,0.00027671,7]
[328127056,1716910245801,-460.706918,0.00027671,7]
[328127057,1716910245810,-151.0,0.00027671,7]
[328127058,1716910245820,-451.79,0.00027671,2]
[328127059,1716910245830,-460.706918,0.00027671,7]
[328127060,1716910245839,-500.0,0.00027671,2]
[328127061,1716910245849,-500.0,0.00027671,2]
[328127062,1716910245859,-151.0,0.00027671,7]
[328127063,1716910245869,-500.0,0.00027671,2]
[328127064,1716910245878,-500.0,0.00027671,2]
[328127065,1716910245888,-500.0,0.00027671,2]
[328127066,1716910245898,-500.0,0.00027671,2]
[328127067,1716910245908,-151.0,0.00027671,7]
[328127068,1716910245917,-500.0,0.00027671,2]
[328127069,1716910245931,-500.0,0.00027671,2]
[328127070,1716910245941,-500.0,0.00027671,2]
[328127071,1716910245954,-500.0,0.00027671,2]
[328127072,1716910245964,-151.810996,0.00027671,7]
[328127073,1716910245975,-151.0,0.00027671,7]
[328127074,1716910245984,-500.0,0.00027671,2]
[328127075,1716910245995,-400.89185857,0.00027671,2]
[328127076,1716910246005,-500.0,0.00027671,2]
[328127077,1716910246016,-500.0,0.00027671,2]
[328127078,1716910246026,-500.0,0.00027671,2]
[328127079,1716910246036,-151.0,0.00027671,7]
[328127080,1716910246046,-500.0,0.00027671,2]
[328127081,1716910246056,-500.0,0.00027671,2]
[328127082,1716910246065,-549.27019935,0.00027671,2]
[328127083,1716910246075,-359.34956061,0.00027671,2]
[328127084,1716910246085,-500.0,0.00027671,2]
[328127085,1716910246094,-500.0,0.00027671,2]
[328127086,1716910246104,-500.0,0.00027671,2]
[328127087,1716910246113,-500.0,0.00027671,2]
[328127088,1716910246123,-500.0,0.00027671,2]
[328127089,1716910246133,-500.0,0.00027671,2]
[328127090,1716910246143,-500.0,0.00027671,2]
[328127091,1716910246152,-500.0,0.00027671,2]
[328127092,1716910246163,-500.0,0.00027671,2]
[328127093,1716910246173,-151.0,0.00027671,7]
[328127094,1716910246182,-500.0,0.00027671,2]
[328127095,1716910246192,-500.0,0.00027671,2]
[328127096,1716910246204,-500.0,0.00027671,2]
[328127097,1716910246214,-617.1,0.00027671,2]
[328127098,1716910246223,-500.0,0.00027671,2]
[328127099,1716910246232,-500.0,0.00027671,2]
[328127100,1716910246242,-500.0,0.00027671,2]
[328127101,1716910246252,-500.0,0.00027671,2]
[328127102,1716910246262,-500.0,0.00027671,2]
[328127103,1716910246272,-500.0,0.00027671,2]
[328127104,1716910246282,-500.0,0.00027671,2]
[328127105,1716910246292,-500.0,0.00027671,2]
[328127106,1716910246303,-500.0,0.00027671,2]
[328127107,1716910246313,-500.0,0.00027671,2]
[328127108,1716910246322,-500.0,0.00027671,2]
[328127109,1716910246332,-500.0,0.00027671,2]
[328127110,1716910246341,-500.0,0.00027671,2]
[328127111,1716910246350,-500.0,0.00027671,2]
[328127112,1716910246360,-500.0,0.00027671,2]
[328127113,1716910246370,-500.0,0.00027671,2]
[328127114,1716910246379,-500.0,0.00027671,2]
[328127115,1716910246389,-769.78,0.00027671,2]
[328127116,1716910246398,-500.0,0.00027671,2]
[328127117,1716910246408,-500.0,0.00027671,2]
[328127118,1716910246418,-500.0,0.00027671,2]
[328127119,1716910246427,-500.0,0.00027671,2]
[328127120,1716910246437,-151.0,0.00027671,7]
[328127121,1716910246447,-500.0,0.00027671,2]
[328127122,1716910246459,-505.492395,0.00027671,7]
[328127123,1716910246468,-516.20946409,0.00027671,2]